{"text_format":"1","workbook":"xlsx","n_sheets":1,"sheets":["Consumables order"],"not_rendered":{"charts":0,"images":1,"macros":0,"external_links":0,"defined_names":0,"comments":0,"pivot_tables":0},"unopened":[],"bounds":{"document_bytes":16777216,"sheet_cells":100000,"rows_first":2000,"rows_last":500,"rows_between":2000,"halvings":0,"cell_chars":16384,"cell_head_chars":4096},"cells_cut":0,"cells_raw":0,"read":"whole","date_system":"1900"}

{"sheet":"Consumables order","index":0,"n_rows":74,"n_cols":13,"rows_kept":74,"cut":false,"hidden":false,"merged":[[54,4,54,9],[55,4,55,9],[53,4,53,9],[56,4,56,9],[69,2,69,12],[72,2,72,12],[73,2,73,12],[11,2,11,5],[11,6,11,12],[12,2,12,5],[12,6,12,12],[13,2,13,5],[13,6,13,12],[14,2,15,5],[14,6,15,12],[18,2,18,3],[18,4,18,9],[19,2,19,3],[19,4,19,9],[20,2,20,3],[1,2,6,12],[9,2,9,5],[9,6,9,12],[10,2,10,5],[10,6,10,12],[20,4,20,9],[23,2,23,3],[23,4,23,9],[24,2,24,3],[24,4,24,9],[25,2,25,3],[25,4,25,9],[27,2,27,3],[27,4,27,9],[28,2,28,3],[28,4,28,9],[26,2,26,3],[26,4,26,9],[29,2,29,3],[29,4,29,9],[32,2,32,3],[32,4,32,9],[33,2,33,3],[33,4,33,9],[36,2,36,3],[36,4,36,9],[44,2,44,3],[44,4,44,9],[37,2,37,3],[37,4,37,9],[38,2,38,3],[38,4,38,9],[39,2,39,3],[39,4,39,9],[41,2,41,12],[42,2,42,3],[42,4,42,9],[43,2,43,3],[43,4,43,9],[45,2,45,3],[45,4,45,9],[46,2,46,3],[46,4,46,9],[47,2,47,3],[47,4,47,9],[59,4,59,9],[48,2,48,3],[48,4,48,9],[49,2,49,3],[49,4,49,9],[50,2,50,3],[50,4,50,9],[51,2,51,3],[51,4,51,9],[52,2,52,3],[52,4,52,9],[59,2,59,3],[54,2,54,3],[56,2,56,3],[53,2,53,3],[55,2,55,3],[64,2,67,9],[60,2,60,3],[60,4,60,9],[61,2,61,3],[61,4,61,9],[62,2,62,3],[62,4,62,9]]}
[]
[null,null,"Hygiene consumables order form "]
[]
[]
[]
[]
[]
[]
[]
[null,null,"Company name"]
[null,null,"Contact name"]
[null,null,"Email address"]
[null,null,"Delivery address"]
[null,null,"Billing address (if different)"]
[null,null,"Please determine payment type & P.O details if required",null,null,null,"e.g. On Account and Purchase order is 485612"]
[]
[]
[null,null,"Audiometry"]
[null,null,"Product Code",null,"Product Name",null,null,null,null,null,"Cost","Qty","Total"]
[null,null,8107419,null,"Ear Cushion Cover (Suitable for Standard Headset) QTY 500",null,null,null,null,null,63.63,null,{"$f":"L20*K20","v":0}]
[null,null,8513404,null,"Ear Cushion Cover (Suitable for Audiocups) QTY 100",null,null,null,null,null,21.21,null,{"$f":"L21*K21","v":0}]
[]
[null,null,"Spirometry"]
[null,null,"Product Code",null,"Product Name",null,null,null,null,null,"Cost","Qty","Total"]
[null,null,1012009,null,"PERA-SAFE-1171010 (81g)",null,null,null,null,null,28.38,null,{"$f":"K25*L25","v":0}]
[null,null,8531510,null,"Bacterial Viral Filter mouthpieces for spirometers (Box 50)",null,null,null,null,null,48.2,null,{"$f":"L26*K26","v":0}]
[null,null,1060011,null,"Bacterial Viral Filter mouthpieces for spirometers (Box 100)",null,null,null,null,null,96.39,null,{"$f":"L27*K27","v":0}]
[null,null,8507541,null,"One Way Mouthpieces (Box 200)",null,null,null,null,null,32.92,null,{"$f":"L28*K28","v":0}]
[null,null,8507614,null,"One Way Mouthpieces (Box 500)",null,null,null,null,null,80.61,null,{"$f":"L29*K29","v":0}]
[null,null,8507616,null,"MIR Disposable turbines/mouthpieces x 60 ",null,null,null,null,null,100.14,null,{"$f":"L30*K30","v":0}]
[]
[null,null,"Vision screening"]
[null,null,"Product Code",null,"Product Name",null,null,null,null,null,"Cost","Qty","Total"]
[null,null,8507771,null,"Optec Headrest Tissues (10)",null,null,null,null,null,11.35,null,{"$f":"L34*K34","v":0}]
[]
[null,null,"BP measurements"]
[null,null,"Product Code",null,"Product Name",null,null,null,null,null,"Cost","Qty","Total"]
[null,null,1011022,null,"Single Use BP cuff barriers (adult - quantity 50)",null,null,null,null,null,16.07,null,{"$f":"K38*L38","v":0}]
[null,null,1011023,null,"Single Use BP cuff barriers (adult large - quantity 50)",null,null,null,null,null,21.42,null,{"$f":"L39*K39","v":0}]
[null,null,1011020,null,"OMRON M6 Comfort Digital BP monitor",null,null,null,null,null,113.53,null,{"$f":"L40*K40","v":0}]
[]
[null,null,"General "]
[null,null,"Product Code",null,"Product Name",null,null,null,null,null,"Cost","Qty","Total"]
[null,null,8515551,null,"Promed nitrile gloves - small",null,null,null,null,null,19.399999999999999,null,{"$f":"K44*L44","v":0}]
[null,null,8515552,null,"Promed nitrile gloves - medium",null,null,null,null,null,19.399999999999999,null,{"$f":"K45*L45","v":0}]
[null,null,8515553,null,"Promed nitrile gloves - large",null,null,null,null,null,19.399999999999999,null,0]
[null,null,8515554,null,"Promed nitrile gloves - extra large",null,null,null,null,null,19.399999999999999,null,0]
[null,null,1100000,null,"Clinell Universal Wipes 200 Pack",null,null,null,null,null,10.71,null,0]
[null,null,1100003,null,"Clinical 30L Waste Sacks Yellow (10X50)",null,null,null,null,null,27.25,null,0]
[null,null,1100007,null,"Tork Couch Roll 48CM Blue 56M",null,null,null,null,null,4.6500000000000004,null,0]
[null,null,1100001,null,"Clinell Hand Sanitiser 250ML Pump Action",null,null,null,null,null,5.67,null,0]
[null,null,1100002,null,"Clinell Hand Sanitiser 500ML Pump Action",null,null,null,null,null,6.8,null,0]
[null,null,1100013,null,"Type II 3ply surgical face mask pack of 50",null,null,null,null,null,17.13,null,0]
[null,null,8522417,null,"Safety goggles 1pc",null,null,null,null,null,6.74,null,0]
[null,null,8519348,null,"Disposable apron (Box 100)",null,null,null,null,null,29.18,null,0]
[null,null,8519349,null,"Disposable shoe covers (Box 100)",null,null,null,null,null,18.239999999999998,null,0]
[null,null,8519350,null,"Disposable head covers (Box 100)",null,null,null,null,null,21.28,null,0]
[]
[null,null,"Printer Paper Supplies"]
[null,null,"Product Code",null,"Product Name",null,null,null,null,null,"Cost","Qty","Total"]
[null,null,8507761,null,"CA850 Printer Paper (250 Sheets)",null,null,null,null,null,17.03,null,{"$f":"K61*L61","v":0}]
[null,null,8507779,null,"Spirolab Printer Rolls",null,null,null,null,null,6.95,null,{"$f":"K62*L62","v":0}]
[null,null,8507611,null,"Microlab Printer Rolls",null,null,null,null,null,7.01,null,0]
[]
[null,null,"Delivery information\nAn order confirmation will be sent same day for all orders received before \n15:00 with the best available pricing. Most orders are dispatched within one \nworking day. Amplivox will advise if there is a delay with alternative solutions.",null,null,null,null,null,null,null,"Sub Total",null,{"$f":"SUM(M19:M64)","v":0}]
[null,null,null,null,null,null,null,null,null,null,"Delivery",null,{"$f":"IF(M65<100,0,0)","v":0}]
[null,null,null,null,null,null,null,null,null,null,"VAT",null,{"$f":"((M65+M66)*1.2)-(M65+M66)","v":0}]
[null,null,null,null,null,null,null,null,null,null,"Total",null,{"$f":"M65+M66+M67","v":0}]
[]
[null,null,"Place an order\nTo place an order, please email the completed form to: accounts@amplivox.com\n"]
[]
[]
[null,null,"Amplivox Ltd, 3800 Parkside, Solihull Parkway, Birmingham Business Park,  \nBirmingham, West Midlands, B37 7YG, United Kingdom\n"]
[null,null,"www.amplivox.com  | + 44 (0)1865 880 846  |  hello@amplivox.com"]